bitfinex-derivatives/quotes_BTCF0:USTF0_20250208
["timestamp","ask_amount","ask_price","bid_price","bid_amount"]
[1739005349170,0.58169305,96030.0,96029.0,0.017]
[1739005350966,0.22089305,96030.0,96029.0,0.017]
[1739005351868,0.58169305,96030.0,96029.0,0.017]
[1739005356368,0.5710582,96030.0,96029.0,0.017]
[1739005357766,0.3628,96030.0,96029.0,0.017]
[1739005358072,0.5690347,96041.0,96029.0,0.3778]
[1739005358274,0.3608,96041.0,96039.0,0.2082382]
[1739005358573,0.36362174,96046.0,96040.0,0.0309]
[1739005358774,0.18617306,96042.0,96040.0,0.0309]
[1739005359166,0.001,96041.0,96040.0,0.2391363]
[1739005360179,0.18617306,96042.0,96040.0,0.2391363]
[1739005360372,0.39440636,96042.0,96040.0,0.0339]
[1739005361275,0.39440636,96042.0,96041.0,0.0313]
[1739005362366,0.39440636,96042.0,96041.0,0.0343]
[1739005362774,0.39440636,96042.0,96041.0,0.0373]
[1739005362975,0.2082333,96042.0,96041.0,0.0373]
[1739005373781,0.25886952,96042.0,96041.0,0.0373]
[1739005376080,0.36366513,96042.0,96041.0,0.0373]
[1739005379284,0.35866513,96042.0,96041.0,0.0373]
[1739005380277,0.2032333,96042.0,96041.0,0.0373]
[1739005384778,0.208243,96037.0,96030.0,0.33317192]
[1739005385792,0.210243,96037.0,96030.0,0.34517192]
[1739005386089,0.2082468,96036.0,96030.0,0.34517192]
[1739005386287,0.002,96037.0,96030.0,0.34517192]
[1739005386491,0.2082484,96035.0,96030.0,0.34517192]
[1739005387190,0.2082507,96034.0,96030.0,0.34517192]
[1739005387791,0.2082507,96034.0,96030.0,0.2202576]
[1739005388092,0.2082507,96034.0,96031.0,0.062]
[1739005388596,0.2092507,96034.0,96031.0,0.062]
[1739005389392,0.2102507,96034.0,96031.0,0.062]
[1739005389690,0.2092507,96034.0,96031.0,0.062]
[1739005389884,0.2102507,96034.0,96031.0,0.062]
[1739005390084,0.002,96034.0,96031.0,0.062]
[1739005390385,0.2082521,96033.0,96031.0,0.062]
[1739005390784,0.2082521,96033.0,96031.0,0.069]
[1739005391585,0.2092521,96033.0,96031.0,0.2772553]
[1739005391990,0.2102521,96033.0,96031.0,0.2782553]
[1739005403196,0.002,96033.0,96031.0,0.2782553]
[1739005406995,0.002,96033.0,96032.0,0.2082538]
[1739005408504,0.002,96033.0,96032.0,0.2092538]
[1739005409096,0.001,96033.0,96032.0,0.2092538]
[1739005409296,0.002,96033.0,96032.0,0.2162538]
[1739005421019,0.002,96033.0,96032.0,0.5770538]
[1739005427424,0.002,96033.0,96032.0,0.82716505]
[1739005427616,0.002,96033.0,96032.0,0.46636505]
[1739005428015,0.002,96033.0,96032.0,0.82716505]
[1739005435022,0.002,96033.0,96032.0,0.5770538]
[1739005445133,0.2082224,96047.0,96032.0,0.3688]
[1739005445431,0.2082224,96047.0,96042.0,0.2082304]
[1739005447027,0.2082224,96047.0,96042.0,0.2102304]
[1739005447729,0.2092224,96047.0,96042.0,0.2102304]
[1739005448221,0.2082224,96047.0,96042.0,0.2102304]
[1739005448426,0.2082224,96047.0,96042.0,0.2122304]
[1739005449133,0.2082224,96047.0,96042.0,0.004]
[1739005449334,0.2082224,96047.0,96044.0,0.2082259]
[1739005449924,0.2082224,96047.0,96042.0,0.004]
[1739005449925,0.15567128,96049.0,96048.0,0.2082191]
[1739005450135,0.15567128,96049.0,96048.0,0.5690191]
[1739005450633,0.18665413,96049.0,96048.0,0.5690191]
[1739005451944,0.18765413,96049.0,96048.0,0.5690191]
[1739005454325,0.18765413,96049.0,96048.0,0.2082191]
[1739005454728,0.001,96049.0,96048.0,0.2082191]
[1739005455727,0.001,96049.0,96048.0,0.5690191]
[1739005459042,0.00010205,96051.0,96050.0,0.2082148]
[1739005460132,0.0638,96068.0,96061.0,0.2081902]
[1739005461342,0.0718,96068.0,96063.0,0.2081856]
[1739005462535,0.008,96068.0,96060.0,0.3608]
[1739005462736,0.008,96068.0,96066.0,0.2081791]
[1739005463039,0.003,96068.0,96066.0,0.2081791]
[1739005463248,0.009,96068.0,96066.0,0.2081791]
[1739005463848,0.004,96068.0,96066.0,0.2081791]
[1739005464042,0.007,96068.0,96066.0,0.2081791]
[1739005464443,0.003,96068.0,96066.0,0.2081791]
[1739005464644,0.002,96068.0,96066.0,0.2081791]
[1739005464843,0.007,96068.0,96066.0,0.2091791]
[1739005466247,0.009,96068.0,96066.0,0.2091791]
[1739005475447,0.009,96068.0,96066.0,0.5699791]
[1739005480459,0.009,96068.0,96066.0,0.2091791]
[1739005480651,0.009,96068.0,96066.0,0.5699791]
[1739005485550,0.009,96068.0,96066.0,0.2091791]
[1739005485750,0.009,96068.0,96066.0,0.5699791]
[1739005487263,0.009,96068.0,96066.0,0.2091791]
[1739005487561,0.009,96068.0,96066.0,0.5699791]
[1739005488862,0.009,96068.0,96066.0,0.2091791]
[1739005489057,0.009,96068.0,96066.0,0.5699791]
[1739005489363,0.009,96068.0,96066.0,0.2091791]
[1739005489663,0.009,96068.0,96066.0,0.5699791]
[1739005489854,0.15580052,96067.0,96066.0,0.5699791]
[1739005491363,0.15580052,96067.0,96066.0,0.5689791]
[1739005491555,0.16480052,96067.0,96066.0,0.5699791]
[1739005492160,0.50215382,96096.0,96066.0,0.3618]
[1739005492364,0.00156135,96094.0,96082.0,0.08200206]
[1739005492571,0.00156135,96094.0,96088.0,0.2081323]
[1739005492572,0.2081284,96090.0,96088.0,0.2081323]
[1739005493064,0.2081438,96083.0,96081.0,0.2081464]
[1739005493264,0.0331,96082.0,96081.0,0.2081464]
[1739005495154,0.0401,96082.0,96081.0,0.2091464]
[1739005496370,0.0451,96082.0,96081.0,0.2091464]
[1739005498170,0.012,96082.0,96081.0,0.2091464]
[1739005498670,0.012,96082.0,96081.0,0.2701464]
[1739005501369,0.012,96082.0,96081.0,0.6309464]
[1739005502259,0.00156135,96094.0,96093.0,0.2081217]
[1739005503570,0.00656135,96094.0,96093.0,0.2091217]
[1739005503958,0.00756135,96094.0,96093.0,0.2091217]
[1739005507873,0.00756135,96094.0,96093.0,0.21969572]
[1739005509173,0.00656135,96094.0,96093.0,0.21869572]
[1739005509567,0.00256135,96094.0,96093.0,0.21869572]
[1739005509766,0.00756135,96094.0,96093.0,0.2091217]
[1739005510166,0.00656135,96094.0,96093.0,0.2091217]
[1739005510373,0.00756135,96094.0,96093.0,0.2091217]
[1739005518286,0.00756135,96094.0,96093.0,0.5699217]
[1739005522686,0.00756135,96094.0,96093.0,0.58049623]
[1739005524192,0.00756135,96094.0,96093.0,0.21969623]
[1739005524889,0.006,96094.0,96093.0,0.2091217]
[1739005535898,0.1,96100.0,96098.0,0.2081092]
[1739005537205,0.104,96100.0,96098.0,0.2081092]
[1739005538895,0.0506028,96099.0,96098.0,0.2081092]
[1739005540312,0.0516028,96099.0,96098.0,0.2081092]
[1739005541411,0.06209865,96099.0,96098.0,0.2081092]
[1739005543804,0.2081247,96092.0,96090.0,0.08200206]
[1739005544012,0.3608,96092.0,96084.0,0.2081404]
[1739005544213,0.0655,96091.0,96084.0,0.2081404]
[1739005545215,0.2081375,96086.0,96084.0,0.2081404]
[1739005547609,0.0665,96091.0,96080.0,0.18697626]
[1739005547810,0.0665,96091.0,96085.0,0.2081385]
[1739005548116,0.001,96086.0,96085.0,0.2081385]
[1739005549017,0.0675,96091.0,96086.0,0.2081363]
[1739005549525,0.0655,96091.0,96086.0,0.2081363]
[1739005551620,0.0675,96091.0,96087.0,0.208134]
[1739005552319,0.0349,96091.0,96087.0,0.208134]
[1739005552620,0.0329,96091.0,96087.0,0.208134]
[1739005552808,0.0359,96091.0,96087.0,0.208134]
[1739005553414,0.2440265,96091.0,96087.0,0.208134]
[1739005556518,0.2440265,96091.0,96080.0,0.26897832]
[1739005556720,0.2440265,96091.0,96088.0,0.2081318]
[1739005557924,0.2410265,96091.0,96088.0,0.2081318]
[1739005558525,0.2440265,96091.0,96088.0,0.2081318]
[1739005561217,0.2081286,96090.0,96088.0,0.2081318]
[1739005561824,0.2081438,96083.0,96081.0,0.18697626]
[1739005563515,0.2081469,96082.0,96078.0,0.3608]
[1739005564311,0.2081469,96082.0,96076.0,0.39569386]
[1739005564514,0.2081469,96082.0,96076.0,0.39513386]
[1739005564823,0.2081469,96082.0,96078.0,0.001]
[1739005565727,0.2081482,96081.0,96077.0,0.2081547]
[1739005567320,0.2081482,96081.0,96078.0,0.001]
[1739005567516,0.15583971,96085.0,96078.0,0.001]
[1739005567720,0.15583971,96085.0,96082.0,0.2081449]
[1739005567919,0.15583971,96085.0,96083.0,0.0636]
[1739005570526,0.001,96085.0,96083.0,0.0636]
[1739005575522,0.2091395,96085.0,96083.0,0.0636]
[1739005576129,0.2091395,96085.0,96083.0,0.2717416]
[1739005577238,0.001,96085.0,96083.0,0.2717416]
[1739005577536,0.001,96085.0,96084.0,0.0331]
[1739005579931,0.15583971,96086.0,96084.0,0.0331]
[1739005580132,0.15583971,96086.0,96085.0,0.208139]
[1739005581335,0.15683971,96086.0,96085.0,0.208139]
[1739005581936,0.15783971,96086.0,96085.0,0.208139]
[1739005582640,0.002,96086.0,96085.0,0.208139]
[1739005585840,0.002,96086.0,96080.0,0.18697626]
[1739005586031,0.2081389,96085.0,96080.0,0.18697626]
[1739005586341,0.2081389,96085.0,96083.0,0.18697626]
[1739005587630,0.2091389,96085.0,96083.0,0.18697626]
[1739005589331,0.2091389,96085.0,96077.0,0.2081545]
[1739005590525,0.2081389,96085.0,96077.0,0.2091545]
[1739005590730,0.2081389,96085.0,96077.0,0.2101545]
[1739005592941,0.2081389,96085.0,96077.0,0.002]
[1739005596344,0.2081486,96081.0,96077.0,0.002]
[1739005596941,0.3608,96078.0,96077.0,0.002]
[1739005597342,0.392,96078.0,96077.0,0.002]
[1739005598746,0.0312,96078.0,96077.0,0.002]
[1739005598945,0.392,96078.0,96077.0,0.002]
[1739005599747,0.44261755,96078.0,96077.0,0.002]
[1739005601653,0.47311755,96078.0,96077.0,0.002]
[1739005602741,0.4225,96078.0,96077.0,0.002]
[1739005605342,0.4225,96078.0,96072.0,0.00015617]
[1739005606047,0.2081996,96057.0,96050.0,0.81880137]
[1739005606353,0.2081996,96057.0,96050.0,0.81936137]
[1739005607551,0.2091996,96057.0,96056.0,0.19297626]
[1739005608450,0.2091996,96057.0,96056.0,0.19997626]
[1739005610447,0.21982748,96057.0,96056.0,0.19997626]
[1739005611954,0.21982748,96057.0,96056.0,0.013]
[1739005617749,0.2091996,96057.0,96056.0,0.013]
[1739005638067,0.2598294,96057.0,96056.0,0.013]
[1739005646473,0.2598294,96057.0,96056.0,0.2212018]
[1739005649162,0.2091996,96057.0,96056.0,0.2212018]
[1739005652671,0.36481349,96057.0,96056.0,0.2142018]
[1739005652872,0.36481349,96057.0,96056.0,0.2212018]
[1739005654377,0.36381349,96057.0,96056.0,0.2192018]
[1739005654675,0.36381349,96057.0,96056.0,0.2162018]
[1739005657079,0.36381349,96057.0,96056.0,0.2152018]
[1739005658881,0.36381349,96057.0,96056.0,0.2142018]
[1739005661572,0.2081996,96057.0,96056.0,0.2142018]
[1739005661883,0.5689996,96057.0,96056.0,0.006]
[1739005664674,0.61962956,96057.0,96056.0,0.006]
[1739005665882,0.68978956,96057.0,96056.0,0.006]
[1739005667181,0.32898956,96057.0,96056.0,0.006]
[1739005667480,0.68978956,96057.0,96056.0,0.006]
[1739005678177,0.32898956,96057.0,96056.0,0.006]
[1739005678379,0.68978956,96057.0,96056.0,0.006]
[1739005682684,0.87679721,96057.0,96056.0,0.006]
[1739005685278,0.51599721,96057.0,96056.0,0.006]
[1739005685481,0.87679721,96057.0,96056.0,0.006]
[1739005687189,0.51599721,96057.0,96056.0,0.006]
[1739005687385,0.87679721,96057.0,96056.0,0.006]
[1739005687591,0.51599721,96057.0,96056.0,0.006]
[1739005687785,0.87679721,96057.0,96056.0,0.006]
[1739005688982,0.44583721,96057.0,96056.0,0.006]
[1739005689189,0.23763761,96057.0,96056.0,0.006]
[1739005689484,0.23763761,96057.0,96056.0,0.0384]
[1739005689884,0.13783761,96057.0,96056.0,0.0384]
[1739005690589,0.13783761,96057.0,96056.0,0.04879407]
[1739005690793,0.0001559,96066.0,96057.0,0.2081996]
[1739005690994,0.18691054,96066.0,96065.0,0.2081823]
[1739005692386,0.18791054,96066.0,96065.0,0.2081823]
[1739005693495,0.18891054,96066.0,96065.0,0.2081823]
[1739005693900,0.0021559,96066.0,96065.0,0.2081823]
[1739005696297,0.3629559,96066.0,96061.0,0.18697626]
[1739005697502,0.3629559,96066.0,96060.0,0.2081925]
[1739005697700,0.3619559,96066.0,96060.0,0.2081925]
[1739005697902,0.3619559,96066.0,96061.0,0.001]
[1739005698098,0.3619559,96066.0,96063.0,0.2081855]
[1739005698302,0.3609559,96066.0,96063.0,0.2081855]
[1739005699104,0.3619559,96066.0,96063.0,0.2081855]
[1739005703201,0.5701381,96066.0,96063.0,0.2081855]
[1739005704503,0.3619559,96066.0,96063.0,0.2081855]
[1739005704704,0.2081829,96065.0,96063.0,0.2081855]
[1739005705094,0.2081946,96060.0,96056.0,0.2082018]
[1739005705293,0.3619559,96066.0,96052.0,0.01045049]
[1739005705294,0.2081961,96059.0,96058.0,0.2081965]
[1739005705500,0.2081918,96061.0,96059.0,0.2081936]
[1739005706700,0.0319,96060.0,96059.0,0.2081936]
[1739005707507,0.0319,96060.0,96059.0,0.2101936]
[1739005707905,0.0319,96060.0,96059.0,0.2081936]
[1739005708100,0.0319,96060.0,96059.0,0.2101936]
[1739005708409,0.0319,96060.0,96059.0,0.2111936]
[1739005711704,0.3609559,96066.0,96059.0,0.003]
[1739005711910,0.3609559,96066.0,96063.0,0.2081866]
[1739005712210,0.5691367,96066.0,96063.0,0.2081866]
[1739005712710,0.5691367,96066.0,96064.0,0.2081843]
[1739005714808,0.5701367,96066.0,96064.0,0.2081843]
[1739005715909,0.5701367,96066.0,96063.0,0.01056726]
[1739005716110,0.5701367,96066.0,96065.0,0.2081823]
[1739005717010,0.3619559,96066.0,96065.0,0.2081823]
[1739005717313,0.3629559,96066.0,96065.0,0.2081823]
[1739005717498,0.3629559,96066.0,96065.0,0.21858636]
[1739005717897,0.0021559,96066.0,96065.0,0.21858636]
[1739005720211,0.0021559,96066.0,96065.0,0.2081823]
[1739005733511,0.0021559,96066.0,96060.0,0.18697626]
[1739005734021,0.01247311,96066.0,96060.0,0.18697626]
[1739005734410,0.0021559,96066.0,96060.0,0.18697626]
[1739005734820,0.0011559,96066.0,96060.0,0.18697626]
[1739005735121,0.0001559,96066.0,96060.0,0.18797626]
[1739005735326,0.0001559,96066.0,96060.0,0.18897626]
[1739005736720,0.0001559,96066.0,96060.0,0.002]
[1739005737411,0.2083368,96066.0,96060.0,0.002]
[1739005739830,0.15555195,96065.0,96060.0,0.002]
[1739005740220,0.2081844,96064.0,96060.0,0.002]
[1739005740831,0.2081844,96064.0,96060.0,0.001]
[1739005741024,0.2081844,96064.0,96060.0,0.002]
[1739005741733,0.2081887,96063.0,96060.0,0.002]
[1739005742132,0.032,96062.0,96060.0,0.002]
[1739005742831,0.2401905,96062.0,96060.0,0.002]
[1739005743736,0.2401905,96062.0,96060.0,0.001]
[1739005744032,0.2401905,96062.0,96060.0,0.002]
[1739005744231,0.29081283,96062.0,96060.0,0.002]
[1739005747733,0.15568389,96061.0,96060.0,0.002]
[1739005751333,0.2401905,96062.0,96060.0,0.002]
[1739005752528,0.2401905,96062.0,96060.0,0.001]
[1739005752831,0.2401905,96062.0,96060.0,0.002]
[1739005761637,0.39587439,96062.0,96060.0,0.002]
[1739005763940,0.2081909,96061.0,96060.0,0.002]
[1739005765238,0.25881503,96061.0,96060.0,0.002]
[1739005765639,0.25881503,96061.0,96060.0,0.001]
[1739005766033,0.25881503,96061.0,96060.0,0.002]
[1739005769647,0.36390234,96061.0,96060.0,0.002]
[1739005773046,0.2081909,96061.0,96060.0,0.002]
[1739005776341,0.25881503,96061.0,96060.0,0.002]
[1739005798059,0.25881503,96061.0,96060.0,0.00018993]
[1739005801471,0.2082179,96049.0,96047.0,0.20837679]
[1739005801670,0.0633,96048.0,96047.0,0.20837679]
[1739005801866,0.2715191,96048.0,96047.0,0.20837679]
[1739005802872,0.2725191,96048.0,96047.0,0.21437679]
[1739005803775,0.2725191,96048.0,96047.0,0.22137679]
[1739005804466,0.2725191,96048.0,96047.0,0.21437679]
[1739005804772,0.2725191,96048.0,96047.0,0.22137679]
[1739005805777,0.2725191,96048.0,96047.0,0.01315609]
[1739005805968,0.3047191,96048.0,96047.0,0.01315609]
[1739005815889,0.6655191,96048.0,96047.0,0.01315609]
[1739005821590,0.3047191,96048.0,96047.0,0.01315609]
[1739005827091,0.2423191,96048.0,96047.0,0.01315609]
[1739005827290,0.2092191,96048.0,96047.0,0.01315609]
[1739005829086,0.2092191,96048.0,96047.0,0.22137739]
[1739005829786,0.001,96048.0,96047.0,0.22137739]
[1739005831393,0.1567299,96048.0,96047.0,0.22137739]
[1739005833790,0.1567299,96048.0,96047.0,0.58217739]
[1739005835198,0.001,96048.0,96047.0,0.58217739]
[1739005843202,0.001,96048.0,96047.0,0.76938475]
[1739005845299,0.001,96048.0,96047.0,0.40858475]
[1739005845499,0.001,96048.0,96047.0,0.76938475]
[1739005846703,0.001,96048.0,96047.0,0.58217739]
[1739005853914,0.001,96048.0,96047.0,0.22137739]
[1739005854213,0.001,96048.0,96047.0,0.58217739]
[1739005857223,0.001,96048.0,96047.0,0.22137739]
[1739005857513,0.001,96048.0,96047.0,0.58217739]
[1739005859113,0.0326,96054.0,96053.0,0.2082083]
[1739005861018,0.0326,96054.0,96053.0,0.2122083]
[1739005861217,0.0326,96054.0,96053.0,0.2162083]
[1739005861616,0.0326,96054.0,96053.0,0.5770083]
[1739005865515,0.0326,96054.0,96053.0,0.58726025]
[1739005866816,0.0326,96054.0,96053.0,0.5770083]
[1739005869409,0.0326,96054.0,96053.0,0.58765627]
[1739005880110,0.0326,96054.0,96053.0,0.83744324]
[1739005882424,0.1558858,96066.0,96054.0,0.0520515]
[1739005882615,0.1558858,96066.0,96065.0,0.5689824]
[1739005883421,0.0001559,96066.0,96065.0,0.5689824]
[1739005884425,0.0011559,96066.0,96065.0,0.5689824]
[1739005886432,0.0011559,96066.0,96065.0,0.57956607]
[1739005886931,0.0021559,96066.0,96065.0,0.57956607]
[1739005888118,0.0021559,96066.0,96065.0,0.76672567]
[1739005888326,0.0311,96078.0,96077.0,0.2081564]
[1739005888525,0.0311,96078.0,96077.0,0.5689564]
[1739005889633,0.0341,96078.0,96077.0,0.5689564]
[1739005890022,0.0361,96078.0,96077.0,0.5689564]
[1739005891328,0.0361,96078.0,96077.0,0.57947797]
[1739005905534,0.0361,96078.0,96077.0,0.21867797]
[1739005920647,0.005,96078.0,96077.0,0.21867797]
[1739005926650,0.003,96078.0,96077.0,0.21967797]
[1739005927156,0.0306,96083.0,96082.0,0.2081455]
[1739005928655,0.0316,96083.0,96082.0,0.2081455]
[1739005930354,0.001,96083.0,96082.0,0.2081455]
[1739005935259,0.001,96083.0,96082.0,0.5689455]
[1739005938464,0.001,96083.0,96082.0,0.2081455]
[1739005938666,0.001,96083.0,96082.0,0.5689455]
[1739005951766,0.001,96083.0,96082.0,0.2081455]
[1739005951972,0.001,96083.0,96082.0,0.5689455]
[1739005960977,0.001,96083.0,96082.0,0.81877846]
[1739005961177,0.001,96083.0,96082.0,0.45797846]
[1739005961378,0.001,96083.0,96082.0,0.81877846]
[1739005964686,0.001,96083.0,96082.0,0.45797846]
[1739005964884,0.001,96083.0,96082.0,0.81877846]
[1739005966086,0.001,96083.0,96082.0,0.45797846]
[1739005966291,0.001,96083.0,96082.0,0.81877846]
[1739005966888,0.001,96083.0,96082.0,0.45797846]
[1739005967088,0.001,96083.0,96082.0,0.81877846]
[1739005968890,0.001,96083.0,96082.0,0.87551135]
[1739005972299,0.001,96083.0,96082.0,0.5689455]
[1739005980303,0.001,96083.0,96082.0,0.2081455]
[1739005980502,0.001,96083.0,96082.0,0.5689455]
[1739005981900,0.001,96083.0,96082.0,0.2081455]
[1739005982205,0.001,96083.0,96082.0,0.5689455]
[1739005987194,0.001,96083.0,96082.0,0.2081455]
[1739005987399,0.001,96083.0,96082.0,0.5689455]
[1739005991199,0.2091434,96083.0,96082.0,0.3608]
[1739005992806,0.001,96083.0,96078.0,0.31231116]
[1739005993016,0.2081521,96079.0,96078.0,0.31231116]
[1739005993803,0.2081521,96079.0,96076.0,0.4579612]
[1739005994012,0.2081521,96079.0,96078.0,0.001]
[1739005994404,0.36184001,96090.0,96078.0,0.001]
[1739005994596,0.2081521,96079.0,96078.0,0.002]
[1739005995008,0.2081521,96079.0,96078.0,0.001]
[1739005995207,0.2081521,96079.0,96076.0,0.4605212]
[1739005995508,0.2081521,96079.0,96078.0,0.001]
[1739005996296,0.2081521,96079.0,96078.0,0.2091542]
[1739005996800,0.2081521,96079.0,96078.0,0.2101542]
[1739005997207,0.2081521,96079.0,96078.0,0.002]
[1739005997407,0.2081521,96079.0,96078.0,0.001]
[1739005998206,0.2081521,96079.0,96078.0,0.002]
[1739005999097,0.2081521,96079.0,96078.0,0.2101542]
[1739005999299,0.2081425,96084.0,96078.0,0.002]
[1739005999504,0.2081425,96084.0,96081.0,0.2081475]
[1739006000302,0.2081444,96083.0,96081.0,0.2081475]
[1739006000706,0.16603884,96088.0,96081.0,0.2081475]
[1739006001008,0.2081456,96082.0,96081.0,0.2081475]
[1739006007913,0.033,96087.0,96077.0,0.18719363]
[1739006008113,0.2081519,96080.0,96078.0,0.2081542]
[1739006009211,0.2081519,96080.0,96079.0,0.2081521]
[1739006011915,0.2081519,96080.0,96079.0,0.2091521]
[1739006012808,0.2081519,96080.0,96079.0,0.001]
[1739006018821,0.3608,96080.0,96072.0,0.18719363]
[1739006019015,0.2081737,96069.0,96067.0,0.2498037]
[1739006019313,0.5689737,96069.0,96067.0,0.2498037]
[1739006019720,0.5689737,96069.0,96064.0,0.31231116]
[1739006020425,0.5689737,96069.0,96068.0,0.00515617]
[1739006021026,0.3608,96069.0,96068.0,0.006]
[1739006021327,0.5689737,96069.0,96068.0,0.006]
[1739006024127,0.7247036,96069.0,96068.0,0.006]
[1739006024828,0.73521332,96069.0,96068.0,0.006]
[1739006025727,0.37441332,96069.0,96068.0,0.006]
[1739006026133,0.73521332,96069.0,96068.0,0.006]
[1739006026930,0.0520441,96068.0,96034.0,0.0316]
[1739006027136,0.2082323,96042.0,96040.0,0.08200206]
[1739006027332,0.2082338,96042.0,96037.0,0.24943403]
[1739006027634,0.2082362,96041.0,96039.0,0.2082384]
[1739006029332,0.2082362,96041.0,96039.0,0.2172384]
[1739006030238,0.2082362,96041.0,96039.0,0.2262384]
[1739006030239,0.2092362,96041.0,96039.0,0.2262384]
[1739006039744,0.2092362,96041.0,96039.0,0.018]
[1739006044638,0.001,96041.0,96039.0,0.018]
[1739006044846,0.001,96041.0,96039.0,0.2262385]
[1739006047847,0.001,96041.0,96040.0,0.3608]
[1739006049237,0.002,96041.0,96040.0,0.3698]
[1739006049441,0.001,96041.0,96040.0,0.3698]
[1739006051360,0.001,96041.0,96040.0,0.009]
[1739006056244,0.00015617,96050.0,96040.0,0.009]
[1739006056451,0.00015617,96050.0,96049.0,0.5690171]
[1739006058164,0.00115617,96050.0,96049.0,0.5690171]
[1739006059154,0.00215617,96050.0,96049.0,0.5690171]
[1739006059867,0.00215617,96050.0,96049.0,0.5780171]
[1739006060668,0.00115617,96050.0,96049.0,0.5870171]
[1739006063172,0.00156199,96061.0,96060.0,0.2081932]
[1739006064367,0.00256199,96061.0,96060.0,0.2171932]
[1739006065372,0.00356199,96061.0,96060.0,0.2251932]
[1739006068889,0.00356199,96061.0,96060.0,0.5859932]
[1739006071588,0.00356199,96061.0,96060.0,0.59626064]
[1739006092700,0.00356199,96061.0,96060.0,0.84569467]
[1739006093294,0.00356199,96061.0,96060.0,0.83542723]
[1739006095297,0.21175309,96061.0,96060.0,0.83542723]
[1739006095704,0.21175309,96061.0,96060.0,0.47462723]
[1739006096006,0.21175309,96061.0,96060.0,0.2251932]
[1739006104107,0.00356199,96061.0,96060.0,0.2251932]
[1739006123523,0.00356199,96061.0,96060.0,0.2221932]
[1739006124822,0.00256199,96061.0,96060.0,0.2131932]
[1739006125022,0.00156199,96061.0,96060.0,0.2131932]
[1739006125226,0.00256199,96061.0,96060.0,0.2181932]
[1739006125620,0.00156199,96061.0,96060.0,0.2181932]
[1739006125825,0.00256199,96061.0,96060.0,0.2181932]
[1739006126126,0.00256199,96061.0,96060.0,0.2131932]
[1739006126324,0.00156199,96061.0,96060.0,0.2171932]
[1739006126526,0.00156199,96061.0,96060.0,0.2181932]
[1739006127328,0.00156199,96061.0,96060.0,0.5729932]
[1739006127510,0.00156199,96061.0,96060.0,0.5789932]
[1739006128218,0.00156199,96061.0,96060.0,0.5779932]
[1739006129718,0.00156199,96061.0,96060.0,0.5769932]
[1739006130626,0.00156199,96061.0,96060.0,0.5729932]
[1739006130822,0.00156199,96061.0,96060.0,0.5769932]
[1739006132219,0.00156199,96061.0,96060.0,0.5749932]
[1739006132826,0.00156199,96061.0,96060.0,0.5759932]
[1739006133428,0.00156199,96061.0,96060.0,0.2121932]
[1739006135924,0.00156199,96061.0,96060.0,0.2111932]
[1739006136124,0.00156199,96061.0,96060.0,0.2091932]
[1739006136326,0.00156199,96061.0,96060.0,0.2101932]
[1739006139025,0.00156199,96061.0,96060.0,0.2091932]
[1739006139222,0.00156199,96061.0,96060.0,0.2101932]
[1739006140732,0.00156199,96061.0,96060.0,0.2091932]
[1739006140930,0.00156199,96061.0,96060.0,0.2101932]
[1739006141127,0.00156199,96061.0,96060.0,0.002]
[1739006141628,0.00156199,96061.0,96060.0,0.001]
[1739006141829,0.00156199,96061.0,96060.0,0.002]
[1739006144037,0.00156199,96061.0,96060.0,0.001]
[1739006144730,0.15729189,96061.0,96060.0,0.001]
[1739006146141,0.36548299,96061.0,96060.0,0.001]
[1739006148536,0.20975309,96061.0,96060.0,0.002]
[1739006149036,0.20975309,96061.0,96057.0,0.2081995]
[1739006149227,0.2081911,96061.0,96060.0,0.001]
[1739006149630,0.2081911,96061.0,96057.0,0.2081995]
[1739006149826,0.2081911,96061.0,96060.0,0.002]
[1739006151541,0.2081937,96060.0,96057.0,0.003]
[1739006152243,0.2081976,96058.0,96057.0,0.003]
[1739006152745,0.2081976,96058.0,96056.0,0.2082009]
[1739006152947,0.2081976,96058.0,96057.0,0.002]
[1739006153144,0.2081976,96058.0,96057.0,0.2101997]
[1739006153342,0.2081976,96058.0,96057.0,0.2081997]
[1739006153548,0.2081976,96058.0,96057.0,0.2111997]
[1739006154243,0.2081976,96058.0,96057.0,0.2091997]
[1739006154445,0.2081976,96058.0,96057.0,0.2101997]
[1739006155740,0.2081976,96058.0,96057.0,0.2091997]
[1739006156444,0.2081976,96058.0,96057.0,0.2101997]
[1739006157942,0.2081976,96058.0,96057.0,0.2091997]
[1739006158243,0.2081976,96058.0,96057.0,0.2101997]
[1739006158640,0.2081976,96058.0,96057.0,0.2091997]
[1739006158844,0.2081976,96058.0,96057.0,0.2101997]
[1739006159733,0.2081976,96058.0,96057.0,0.2081997]
[1739006159938,0.2081976,96058.0,96057.0,0.001]
[1739006160538,0.21854433,96058.0,96057.0,0.001]
[1739006161439,0.2082016,96057.0,96053.0,0.2082078]
[1739006162442,0.2082022,96056.0,96053.0,0.2082078]
[1739006162643,0.2082022,96056.0,96055.0,0.18734886]
[1739006166052,0.2082022,96056.0,96055.0,0.18834886]
[1739006166749,0.2082022,96056.0,96055.0,0.39655296]
[1739006173051,0.2082022,96056.0,96055.0,0.2092041]
[1739006183363,0.2082022,96056.0,96055.0,0.001]
[1739006187765,0.01045363,96067.0,96055.0,0.001]
[1739006188068,0.2081896,96062.0,96055.0,0.001]
[1739006188867,0.2081926,96061.0,96054.0,0.45856425]
[1739006189164,0.2081926,96061.0,96055.0,0.001]
[1739006190963,0.2081926,96061.0,96058.0,0.208196]
[1739006191172,0.2081782,96067.0,96061.0,0.2081908]
[1739006191357,0.2081782,96067.0,96062.0,0.2081868]
[1739006192557,0.2081782,96067.0,96060.0,0.18741162]
[1739006192763,0.2081782,96067.0,96064.0,0.208183]
[1739006194071,0.2091782,96067.0,96064.0,0.208183]
[1739006194473,0.2101782,96067.0,96064.0,0.208183]
[1739006194975,0.2081813,96066.0,96064.0,0.208183]
[1739006196374,0.2091813,96066.0,96064.0,0.208183]
[1739006196972,0.2101813,96066.0,96064.0,0.208183]
[1739006198276,0.2081867,96063.0,96062.0,0.24979825]
[1739006198480,0.2081867,96063.0,96059.0,0.45799255]
[1739006199378,0.001,96066.0,96059.0,0.45799255]
[1739006199573,0.001,96066.0,96059.0,0.24979825]
[1739006199574,0.2081932,96060.0,96059.0,0.24979825]